[Event "*** Titled Tuesday Blitz"]
[Site "Chess.com"]
[Date "2020.04.07"]
[Round "5"]
[White "Filip_Covic"]
[Black "AshotParvanyan"]
[Result "0-1"]
[WhiteElo "2337"]
[BlackElo "2529"]
[TimeControl "180+1"]
[EndTime "13:56:38 PDT"]
[Termination "AshotParvanyan won on time"]

1. d4 {[%clk 0:03:00.9]} 1... Nf6 {[%clk 0:02:58.9]} 2. c4 {[%clk 0:02:58.5]}
2... g6 {[%clk 0:02:58.3]} 3. Nc3 {[%clk 0:02:57.9]} 3... Bg7 {[%clk 0:02:58.2]}
4. e4 {[%clk 0:02:55.5]} 4... d6 {[%clk 0:02:58.5]} 5. Nge2 {[%clk 0:02:55.5]}
5... O-O {[%clk 0:02:58.6]} 6. Ng3 {[%clk 0:02:56]} 6... c5 {[%clk 0:02:58.8]}
7. d5 {[%clk 0:02:55.5]} 7... e6 {[%clk 0:02:59]} 8. Be2 {[%clk 0:02:52.7]} 8...
exd5 {[%clk 0:02:59]} 9. cxd5 {[%clk 0:02:52.2]} 9... Re8 {[%clk 0:02:57.3]} 10.
O-O {[%clk 0:02:50.6]} 10... h5 {[%clk 0:02:57.1]} 11. Bg5 {[%clk 0:02:48.5]}
11... a6 {[%clk 0:02:57.2]} 12. a4 {[%clk 0:02:47]} 12... Qc7 {[%clk 0:02:56.3]}
13. Qd2 {[%clk 0:02:15.1]} 13... Nh7 {[%clk 0:02:50.9]} 14. Bh6 {[%clk
0:02:15.3]} 14... h4 {[%clk 0:02:49.7]} 15. Bxg7 {[%clk 0:02:11.6]} 15... Kxg7
{[%clk 0:02:45.1]} 16. Nh1 {[%clk 0:02:04.4]} 16... Nd7 {[%clk 0:02:36.4]} 17.
f4 {[%clk 0:01:58]} 17... Ndf6 {[%clk 0:02:35.9]} 18. Nf2 {[%clk 0:01:55.9]}
18... Bd7 {[%clk 0:02:28.6]} 19. Rfe1 {[%clk 0:01:33.1]} 19... Rab8 {[%clk
0:02:11.2]} 20. a5 {[%clk 0:01:29.6]} 20... Re7 {[%clk 0:01:55.1]} 21. e5 {[%clk
0:01:22.3]} 21... Ne8 {[%clk 0:01:49.3]} 22. Nfe4 {[%clk 0:01:07.3]} 22... Bf5
{[%clk 0:01:46]} 23. Bf3 {[%clk 0:00:49.6]} 23... Rd8 {[%clk 0:01:45.6]} 24. e6
{[%clk 0:00:38.3]} 24... fxe6 {[%clk 0:01:19.3]} 25. dxe6 {[%clk 0:00:39.2]}
25... Rxe6 {[%clk 0:01:19.3]} 26. Nd5 {[%clk 0:00:34.7]} 26... Qf7 {[%clk
0:01:19.6]} 27. Ng5 {[%clk 0:00:33]} 27... Nxg5 {[%clk 0:01:15.1]} 28. fxg5
{[%clk 0:00:33.9]} 28... Re5 {[%clk 0:00:42.3]} 29. Qc3 {[%clk 0:00:31]} 29...
Qe6 {[%clk 0:00:40]} 30. Nf4 {[%clk 0:00:16.6]} 30... Qe7 {[%clk 0:00:38.4]} 31.
Nd5 {[%clk 0:00:14.3]} 31... Qxg5 {[%clk 0:00:27.7]} 32. Rxe5 {[%clk 0:00:13.8]}
32... dxe5 {[%clk 0:00:28.6]} 33. Qxe5+ {[%clk 0:00:14.1]} 33... Kh7 {[%clk
0:00:28.4]} 34. Re1 {[%clk 0:00:07.3]} 34... Ng7 {[%clk 0:00:20.6]} 35. Nf6+
{[%clk 0:00:06.4]} 35... Kh8 {[%clk 0:00:20.8]} 36. Qe7 {[%clk 0:00:04]} 36...
Qd2 {[%clk 0:00:15.8]} 37. Nd5 {[%clk 0:00:02.1]} 37... Qd4+ {[%clk 0:00:13.7]}
38. Kh1 {[%clk 0:00:01.6]} 38... Rxd5 {[%clk 0:00:12.9]} 39. Bxd5 {[%clk
0:00:02.5]} 39... Qxd5 {[%clk 0:00:12.9]} 40. Qf8+ {[%clk 0:00:02.6]} 40... Kh7
{[%clk 0:00:12.3]} 41. Qf6 {[%clk 0:00:02.6]} 41... Qd4 {[%clk 0:00:10.2]} 42.
Qf7 {[%clk 0:00:02.1]} 42... h3 {[%clk 0:00:09.6]} 43. Qxb7 {[%clk 0:00:01.5]}
43... Qf2 {[%clk 0:00:07.6]} 0-1

[Event "*** Titled Tuesday Blitz"]
[Site "Chess.com"]
[Date "2020.04.07"]
[Round "5"]
[White "Etoilegeniale"]
[Black "MarcoRiehle"]
[Result "0-1"]
[WhiteElo "2505"]
[BlackElo "2703"]
[TimeControl "180+1"]
[EndTime "13:56:39 PDT"]
[Termination "MarcoRiehle won by resignation"]

1. e4 {[%clk 0:03:00.9]} 1... e5 {[%clk 0:02:58.5]} 2. Nf3 {[%clk 0:03:00.6]}
2... Nf6 {[%clk 0:02:57.4]} 3. Nxe5 {[%clk 0:02:58.3]} 3... Nxe4 {[%clk
0:02:57.2]} 4. d4 {[%clk 0:02:54.8]} 4... d6 {[%clk 0:02:55.7]} 5. Nf3 {[%clk
0:02:53.3]} 5... d5 {[%clk 0:02:55.8]} 6. Bd3 {[%clk 0:02:53.1]} 6... Bd6 {[%clk
0:02:55.5]} 7. O-O {[%clk 0:02:51.3]} 7... O-O {[%clk 0:02:55.9]} 8. c4 {[%clk
0:02:50.9]} 8... c6 {[%clk 0:02:56.1]} 9. Re1 {[%clk 0:02:50.8]} 9... Bf5 {[%clk
0:02:53.7]} 10. Qb3 {[%clk 0:02:47]} 10... Re8 {[%clk 0:02:42.5]} 11. Qxb7
{[%clk 0:02:22.6]} 11... Nd7 {[%clk 0:02:41.1]} 12. Qxc6 {[%clk 0:02:17.3]}
12... Ndf6 {[%clk 0:02:36.4]} 13. c5 {[%clk 0:02:04.3]} 13... Rc8 {[%clk
0:02:34]} 14. Qa4 {[%clk 0:01:57.6]} 14... Nxc5 {[%clk 0:02:22.3]} 15. Rxe8+
{[%clk 0:01:53]} 15... Nxe8 {[%clk 0:02:22.4]} 16. dxc5 {[%clk 0:01:48.5]} 16...
Bxd3 {[%clk 0:02:22]} 17. Bg5 {[%clk 0:01:02.8]} 17... Rxc5 {[%clk 0:02:14.1]}
18. Nc3 {[%clk 0:00:28]} 18... Qc8 {[%clk 0:01:38.3]} 19. Rd1 {[%clk 0:00:26.7]}
19... Bg6 {[%clk 0:01:27]} 20. Be3 {[%clk 0:00:23.6]} 20... Rc6 {[%clk 0:01:09]}
21. Rxd5 {[%clk 0:00:21.8]} 21... Nf6 {[%clk 0:01:06.7]} 22. Rd1 {[%clk
0:00:20.8]} 22... a6 {[%clk 0:01:06.9]} 23. h3 {[%clk 0:00:19.8]} 23... Bf8
{[%clk 0:00:58]} 24. Qb3 {[%clk 0:00:18.3]} 24... Qc7 {[%clk 0:00:49.6]} 25. Rd4
{[%clk 0:00:16.1]} 25... Bc5 {[%clk 0:00:45.5]} 26. Rd1 {[%clk 0:00:13.4]} 26...
Bxe3 {[%clk 0:00:44.8]} 27. fxe3 {[%clk 0:00:13.4]} 27... h6 {[%clk 0:00:45.1]}
28. Nd5 {[%clk 0:00:12.8]} 28... Qd6 {[%clk 0:00:34.5]} 29. Nxf6+ {[%clk
0:00:11.8]} 29... Qxf6 {[%clk 0:00:34.2]} 30. Qd5 {[%clk 0:00:12.3]} 30... Rc2
{[%clk 0:00:31.2]} 31. Rd2 {[%clk 0:00:11.1]} 31... Qxb2 {[%clk 0:00:27.3]} 32.
Rxc2 {[%clk 0:00:10.5]} 32... Qxc2 {[%clk 0:00:26.6]} 33. Ne5 {[%clk 0:00:10.7]}
33... Qf5 {[%clk 0:00:18.5]} 34. Nxg6 {[%clk 0:00:08.9]} 34... Qxg6 {[%clk
0:00:18.7]} 35. e4 {[%clk 0:00:08.1]} 35... Qb6+ {[%clk 0:00:17.5]} 36. Kh2
{[%clk 0:00:07]} 36... g6 {[%clk 0:00:17.7]} 37. e5 {[%clk 0:00:07.1]} 37... Kg7
{[%clk 0:00:17.4]} 38. Kg3 {[%clk 0:00:07]} 38... g5 {[%clk 0:00:16.8]} 39. Kh2
{[%clk 0:00:07.1]} 39... Qe6 {[%clk 0:00:16.2]} 40. Qxe6 {[%clk 0:00:06.5]}
40... fxe6 {[%clk 0:00:17.1]} 41. Kg3 {[%clk 0:00:06.9]} 41... Kg6 {[%clk
0:00:17.5]} 42. Kg4 {[%clk 0:00:06.2]} 42... h5+ {[%clk 0:00:17.5]} 43. Kf3
{[%clk 0:00:06.4]} 43... Kf5 {[%clk 0:00:17.9]} 44. g4+ {[%clk 0:00:06.6]} 44...
hxg4+ {[%clk 0:00:17.7]} 45. hxg4+ {[%clk 0:00:06.4]} 45... Kxe5 {[%clk
0:00:18.6]} 0-1

[Event "*** Titled Tuesday Blitz"]
[Site "Chess.com"]
[Date "2020.04.07"]
[Round "5"]
[White "IMinTheWings"]
[Black "Vamostodorecto"]
[Result "0-1"]
[WhiteElo "2190"]
[BlackElo "2418"]
[TimeControl "180+1"]
[EndTime "13:56:40 PDT"]
[Termination "Vamostodorecto won by checkmate"]

1. c4 {[%clk 0:03:00.9]} 1... e5 {[%clk 0:02:58.9]} 2. Nc3 {[%clk 0:03:01.1]}
2... Nc6 {[%clk 0:02:59.8]} 3. Nf3 {[%clk 0:03:01.5]} 3... g6 {[%clk 0:02:59.5]}
4. g3 {[%clk 0:02:58.6]} 4... Bg7 {[%clk 0:02:59.4]} 5. Bg2 {[%clk 0:02:59.3]}
5... d6 {[%clk 0:02:59.9]} 6. O-O {[%clk 0:02:59.7]} 6... Nge7 {[%clk
0:03:00.5]} 7. d3 {[%clk 0:02:57.8]} 7... O-O {[%clk 0:02:57.7]} 8. Bd2 {[%clk
0:02:55.8]} 8... f5 {[%clk 0:02:55.7]} 9. Qc1 {[%clk 0:02:56]} 9... Nd4 {[%clk
0:02:32.1]} 10. Nxd4 {[%clk 0:02:52.8]} 10... exd4 {[%clk 0:02:33]} 11. Nb5
{[%clk 0:02:35.5]} 11... c6 {[%clk 0:02:30.5]} 12. Na3 {[%clk 0:02:35.6]} 12...
Be6 {[%clk 0:02:25.3]} 13. Bh6 {[%clk 0:02:35]} 13... Qd7 {[%clk 0:02:23.6]} 14.
Bxg7 {[%clk 0:02:32.8]} 14... Kxg7 {[%clk 0:02:24.5]} 15. Nc2 {[%clk 0:02:24]}
15... c5 {[%clk 0:02:24.3]} 16. a3 {[%clk 0:02:22.7]} 16... f4 {[%clk
0:02:23.8]} 17. gxf4 {[%clk 0:02:21.2]} 17... Bh3 {[%clk 0:02:23.2]} 18. f3
{[%clk 0:02:08.9]} 18... Bxg2 {[%clk 0:02:21.3]} 19. Kxg2 {[%clk 0:02:09.8]}
19... Nf5 {[%clk 0:02:18.8]} 20. Qe1 {[%clk 0:02:06.4]} 20... Rae8 {[%clk
0:02:16.8]} 21. b4 {[%clk 0:01:59.9]} 21... Re7 {[%clk 0:02:11.8]} 22. b5 {[%clk
0:01:33.1]} 22... Rfe8 {[%clk 0:01:50.3]} 23. Rf2 {[%clk 0:01:31.7]} 23... Re6
{[%clk 0:01:47.4]} 24. Ra2 {[%clk 0:01:22.6]} 24... Qe7 {[%clk 0:01:46.9]} 25.
Na1 {[%clk 0:01:21.2]} 25... Qh4 {[%clk 0:01:41]} 26. Nb3 {[%clk 0:01:19.7]}
26... Qxf4 {[%clk 0:01:35]} 27. Nd2 {[%clk 0:01:19]} 27... Ne3+ {[%clk 0:01:23]}
28. Kh1 {[%clk 0:01:17]} 28... Re5 {[%clk 0:01:16.2]} 29. Ne4 {[%clk 0:01:15.3]}
29... Rh5 {[%clk 0:01:14.5]} 30. Qg1 {[%clk 0:01:10.6]} 30... Rh4 {[%clk
0:00:54.1]} 31. a4 {[%clk 0:01:02]} 31... Re5 {[%clk 0:00:53.4]} 32. Nxd6 {[%clk
0:00:55.1]} 32... Reh5 {[%clk 0:00:52.9]} 33. Ne4 {[%clk 0:00:54.8]} 33... Nf1
{[%clk 0:00:46.5]} 34. e3 {[%clk 0:00:25.3]} 34... Nxe3 {[%clk 0:00:38.9]} 35.
Qg3 {[%clk 0:00:22.6]} 35... Rf5 {[%clk 0:00:20.3]} 36. Qxf4 {[%clk 0:00:20.4]}
36... Rhxf4 {[%clk 0:00:21.2]} 37. a5 {[%clk 0:00:18.8]} 37... Rxf3 {[%clk
0:00:20.6]} 38. b6 {[%clk 0:00:15.1]} 38... axb6 {[%clk 0:00:14.5]} 39. axb6
{[%clk 0:00:16]} 39... Rxf2 {[%clk 0:00:13.2]} 40. Nxf2 {[%clk 0:00:16.9]} 40...
Rf6 {[%clk 0:00:12.1]} 41. Ne4 {[%clk 0:00:15.4]} 41... Rf1# {[%clk 0:00:11.5]}
0-1

[Event "*** Titled Tuesday Blitz"]
[Site "Chess.com"]
[Date "2020.04.07"]
[Round "5"]
[White "ama18"]
[Black "EugeneRougon"]
[Result "0-1"]
[WhiteElo "2452"]
[BlackElo "2710"]
[TimeControl "180+1"]
[EndTime "13:56:41 PDT"]
[Termination "EugeneRougon won by checkmate"]

1. e4 {[%clk 0:03:00.9]} 1... e6 {[%clk 0:02:59]} 2. d4 {[%clk 0:03:00.4]} 2...
d5 {[%clk 0:02:59.3]} 3. Nc3 {[%clk 0:03:01]} 3... Bb4 {[%clk 0:02:59.1]} 4. Qd3
{[%clk 0:03:00.2]} 4... dxe4 {[%clk 0:02:30.3]} 5. Qxe4 {[%clk 0:03:01.1]} 5...
Nf6 {[%clk 0:02:30]} 6. Qh4 {[%clk 0:03:01]} 6... Nbd7 {[%clk 0:02:16.8]} 7. a3
{[%clk 0:02:55.7]} 7... Bxc3+ {[%clk 0:02:13.8]} 8. bxc3 {[%clk 0:02:56.6]} 8...
c5 {[%clk 0:02:14.7]} 9. Nf3 {[%clk 0:02:48.9]} 9... b6 {[%clk 0:02:05.2]} 10.
Bb5 {[%clk 0:02:37.6]} 10... O-O {[%clk 0:01:35.2]} 11. Bc6 {[%clk 0:02:18.2]}
11... Ba6 {[%clk 0:01:33.1]} 12. Bg5 {[%clk 0:01:22.7]} 12... h6 {[%clk
0:01:22.4]} 13. Bxf6 {[%clk 0:01:12.7]} 13... Nxf6 {[%clk 0:01:22.3]} 14. Bxa8
{[%clk 0:01:11.9]} 14... Qxa8 {[%clk 0:01:23.2]} 15. O-O-O {[%clk 0:01:07]}
15... Qd5 {[%clk 0:01:06.5]} 16. Kb2 {[%clk 0:00:48.9]} 16... Be2 {[%clk
0:00:36.6]} 17. Rde1 {[%clk 0:00:32.3]} 17... Bxf3 {[%clk 0:00:32.4]} 18. gxf3
{[%clk 0:00:31.9]} 18... Qc4 {[%clk 0:00:32.7]} 19. Qf4 {[%clk 0:00:12.1]} 19...
Nd5 {[%clk 0:00:27.1]} 20. Qd2 {[%clk 0:00:11.4]} 20... cxd4 {[%clk 0:00:25]}
21. Qxd4 {[%clk 0:00:10.2]} 21... Qb5+ {[%clk 0:00:24.3]} 22. Kc1 {[%clk
0:00:10.5]} 22... Rc8 {[%clk 0:00:23.4]} 23. Rhg1 {[%clk 0:00:06.3]} 23... g6
{[%clk 0:00:19.7]} 24. Rxe6 {[%clk 0:00:06.3]} 24... Rc4 {[%clk 0:00:14.8]} 25.
Rgxg6+ {[%clk 0:00:05.7]} 25... fxg6 {[%clk 0:00:13.5]} 26. Rxg6+ {[%clk
0:00:06.6]} 26... Kf7 {[%clk 0:00:13.8]} 27. Qg7+ {[%clk 0:00:06]} 27... Ke8
{[%clk 0:00:14.1]} 28. Re6+ {[%clk 0:00:05.7]} 28... Kd8 {[%clk 0:00:12.8]} 29.
Qf8+ {[%clk 0:00:05.8]} 29... Kc7 {[%clk 0:00:12]} 30. Qf7+ {[%clk 0:00:05.4]}
30... Qd7 {[%clk 0:00:12.1]} 31. Qg6 {[%clk 0:00:03.7]} 31... Nxc3 {[%clk
0:00:11.7]} 32. Qg3+ {[%clk 0:00:02.8]} 32... Kb7 {[%clk 0:00:11]} 33. Re1
{[%clk 0:00:02.7]} 33... Na2+ {[%clk 0:00:10.8]} 34. Kb2 {[%clk 0:00:02.6]}
34... Qd4+ {[%clk 0:00:11.4]} 35. Kxa2 {[%clk 0:00:02.5]} 35... Rxc2+ {[%clk
0:00:11.7]} 36. Kb3 {[%clk 0:00:03.4]} 36... Qb2+ {[%clk 0:00:12.1]} 37. Ka4
{[%clk 0:00:03.4]} 37... Rc4# {[%clk 0:00:12.7]} 0-1

[Event "*** Titled Tuesday Blitz"]
[Site "Chess.com"]
[Date "2020.04.07"]
[Round "5"]
[White "Alex_Terzi"]
[Black "RitvarsReimanis"]
[Result "0-1"]
[WhiteElo "2402"]
[BlackElo "2599"]
[TimeControl "180+1"]
[EndTime "13:56:41 PDT"]
[Termination "RitvarsReimanis won on time"]

1. e4 {[%clk 0:02:53.1]} 1... c5 {[%clk 0:03:00]} 2. Nc3 {[%clk 0:02:52.8]} 2...
Nc6 {[%clk 0:03:00.3]} 3. Bb5 {[%clk 0:02:52.9]} 3... g6 {[%clk 0:02:59.8]} 4.
Bxc6 {[%clk 0:02:52.2]} 4... dxc6 {[%clk 0:03:00.7]} 5. d3 {[%clk 0:02:52.6]}
5... e5 {[%clk 0:02:59.7]} 6. f4 {[%clk 0:02:50.1]} 6... exf4 {[%clk 0:02:56.9]}
7. Bxf4 {[%clk 0:02:48.8]} 7... Bg7 {[%clk 0:02:57.4]} 8. Nf3 {[%clk 0:02:48]}
8... Ne7 {[%clk 0:02:57.3]} 9. O-O {[%clk 0:02:47.2]} 9... O-O {[%clk
0:02:57.7]} 10. Qd2 {[%clk 0:02:47]} 10... f5 {[%clk 0:02:57.5]} 11. Bh6 {[%clk
0:02:46]} 11... fxe4 {[%clk 0:02:49.3]} 12. Bxg7 {[%clk 0:02:44.7]} 12... Kxg7
{[%clk 0:02:50.2]} 13. Nxe4 {[%clk 0:02:44.7]} 13... Nf5 {[%clk 0:02:42.3]} 14.
Qc3+ {[%clk 0:02:36.1]} 14... Kg8 {[%clk 0:02:41.2]} 15. Qxc5 {[%clk 0:02:33.2]}
15... Qb6 {[%clk 0:02:39.4]} 16. Qxb6 {[%clk 0:02:16.6]} 16... axb6 {[%clk
0:02:40.3]} 17. Rfe1 {[%clk 0:02:16.4]} 17... Be6 {[%clk 0:02:35.2]} 18. a3
{[%clk 0:02:16.3]} 18... Bd5 {[%clk 0:02:34.7]} 19. Ne5 {[%clk 0:02:11.5]} 19...
Nd4 {[%clk 0:02:32.7]} 20. Nd7 {[%clk 0:02:11.4]} 20... Nxc2 {[%clk 0:02:28.2]}
21. Nxb6 {[%clk 0:02:06.9]} 21... Rad8 {[%clk 0:02:14.2]} 22. Nc5 {[%clk
0:01:54.9]} 22... Nxa1 {[%clk 0:02:08]} 23. Rxa1 {[%clk 0:01:53.9]} 23... Rde8
{[%clk 0:02:06]} 24. Ncd7 {[%clk 0:00:52.5]} 24... Rf7 {[%clk 0:01:58.4]} 25.
Rf1 {[%clk 0:00:52]} 25... Rxf1+ {[%clk 0:01:44.7]} 26. Kxf1 {[%clk 0:00:52.9]}
26... Kg7 {[%clk 0:01:45.1]} 27. b4 {[%clk 0:00:49.8]} 27... Re7 {[%clk
0:01:11.2]} 28. a4 {[%clk 0:00:44.5]} 28... Rf7+ {[%clk 0:01:04.7]} 29. Kg1
{[%clk 0:00:44.1]} 29... Rf4 {[%clk 0:01:04.6]} 30. b5 {[%clk 0:00:37.5]} 30...
Rd4 {[%clk 0:00:57.9]} 31. Nc5 {[%clk 0:00:30.5]} 31... cxb5 {[%clk 0:00:55.1]}
32. axb5 {[%clk 0:00:30.4]} 32... Bf7 {[%clk 0:00:47.3]} 33. Nxb7 {[%clk
0:00:23.7]} 33... Rxd3 {[%clk 0:00:46.5]} 34. Nc5 {[%clk 0:00:21.3]} 34... Rd1+
{[%clk 0:00:45.3]} 35. Kf2 {[%clk 0:00:20.7]} 35... Rb1 {[%clk 0:00:46.2]} 36.
Ne4 {[%clk 0:00:14.1]} 36... Rb2+ {[%clk 0:00:40.5]} 37. Kg3 {[%clk 0:00:13.1]}
37... Rxb5 {[%clk 0:00:40.1]} 38. Nc8 {[%clk 0:00:12.3]} 38... Rb3+ {[%clk
0:00:35.1]} 39. Kf2 {[%clk 0:00:11.9]} 39... Bd5 {[%clk 0:00:33.9]} 40. Ncd6
{[%clk 0:00:11.4]} 40... Rb2+ {[%clk 0:00:20.4]} 41. Kg3 {[%clk 0:00:08.8]}
41... Kf8 {[%clk 0:00:21]} 42. h4 {[%clk 0:00:06.9]} 42... Ke7 {[%clk
0:00:20.6]} 43. Kf3 {[%clk 0:00:05.8]} 43... Ke6 {[%clk 0:00:16.9]} 0-1

[Event "*** Titled Tuesday Blitz"]
[Site "Chess.com"]
[Date "2020.04.07"]
[Round "5"]
[White "freshfoodcompany"]
[Black "Jbd735"]
[Result "0-1"]
[WhiteElo "2250"]
[BlackElo "2456"]
[TimeControl "180+1"]
[EndTime "13:56:41 PDT"]
[Termination "Jbd735 won on time"]

1. d4 {[%clk 0:03:00.9]} 1... d5 {[%clk 0:02:59.4]} 2. c4 {[%clk 0:03:00.4]}
2... e6 {[%clk 0:02:59.2]} 3. Nc3 {[%clk 0:03:00.4]} 3... c6 {[%clk 0:02:59]} 4.
e4 {[%clk 0:02:59.5]} 4... dxe4 {[%clk 0:02:59.9]} 5. Nxe4 {[%clk 0:02:58.9]}
5... Bb4+ {[%clk 0:02:59.9]} 6. Nc3 {[%clk 0:02:49.1]} 6... c5 {[%clk
0:02:58.7]} 7. Be3 {[%clk 0:02:39.1]} 7... Qa5 {[%clk 0:02:38.1]} 8. Qb3 {[%clk
0:02:12.7]} 8... Nc6 {[%clk 0:02:26.9]} 9. dxc5 {[%clk 0:02:08.1]} 9... Bxc5
{[%clk 0:02:25.8]} 10. Bxc5 {[%clk 0:02:00.5]} 10... Qxc5 {[%clk 0:02:25]} 11.
Nb5 {[%clk 0:01:55.1]} 11... Nd4 {[%clk 0:01:42.7]} 12. Nxd4 {[%clk 0:01:50.7]}
12... Qxd4 {[%clk 0:01:42.3]} 13. Rd1 {[%clk 0:01:35.2]} 13... Qe4+ {[%clk
0:01:41.7]} 14. Ne2 {[%clk 0:01:30.2]} 14... Ne7 {[%clk 0:01:19.7]} 15. Qd3
{[%clk 0:01:09.8]} 15... Qxd3 {[%clk 0:01:16.6]} 16. Rxd3 {[%clk 0:01:09.5]}
16... Bd7 {[%clk 0:00:59.8]} 17. Nc3 {[%clk 0:01:02.3]} 17... O-O-O {[%clk
0:00:41.7]} 18. Be2 {[%clk 0:00:56.3]} 18... Bc6 {[%clk 0:00:40.6]} 19. O-O
{[%clk 0:00:53.3]} 19... Rxd3 {[%clk 0:00:38.8]} 20. Bxd3 {[%clk 0:00:52.9]}
20... Rd8 {[%clk 0:00:38.9]} 21. Rd1 {[%clk 0:00:50]} 21... h6 {[%clk
0:00:31.4]} 22. f3 {[%clk 0:00:40.4]} 22... Kc7 {[%clk 0:00:29.8]} 23. Kf2
{[%clk 0:00:39.6]} 23... a5 {[%clk 0:00:27.2]} 24. Ke2 {[%clk 0:00:38]} 24... e5
{[%clk 0:00:26.3]} 25. Be4 {[%clk 0:00:36.3]} 25... Rxd1 {[%clk 0:00:24.2]} 26.
Kxd1 {[%clk 0:00:35.3]} 26... f5 {[%clk 0:00:24.2]} 27. Bc2 {[%clk 0:00:27.8]}
27... Kd6 {[%clk 0:00:21.2]} 28. Kd2 {[%clk 0:00:24.3]} 28... Kc5 {[%clk
0:00:20.4]} 29. b3 {[%clk 0:00:19.1]} 29... g5 {[%clk 0:00:16.8]} 30. a3 {[%clk
0:00:18]} 30... h5 {[%clk 0:00:15.8]} 31. Ke3 {[%clk 0:00:17.1]} 31... g4 {[%clk
0:00:14.3]} 32. fxg4 {[%clk 0:00:16.3]} 32... hxg4 {[%clk 0:00:14.9]} 33. Ne2
{[%clk 0:00:14.4]} 33... Bxg2 {[%clk 0:00:14]} 34. Kf2 {[%clk 0:00:12.9]} 34...
Bc6 {[%clk 0:00:12.5]} 35. Ng3 {[%clk 0:00:12.6]} 35... f4 {[%clk 0:00:09.9]}
36. Ne2 {[%clk 0:00:12]} 36... a4 {[%clk 0:00:06.8]} 37. Nc3 {[%clk 0:00:09]}
37... axb3 {[%clk 0:00:06.3]} 38. Bxb3 {[%clk 0:00:09.1]} 38... Kd4 {[%clk
0:00:06.4]} 39. Ne2+ {[%clk 0:00:08.1]} 39... Kd3 {[%clk 0:00:06.6]} 40. Nc1+
{[%clk 0:00:06]} 40... Kd2 {[%clk 0:00:06.2]} 41. Ne2 {[%clk 0:00:05.6]} 41...
Ng6 {[%clk 0:00:05.4]} 42. a4 {[%clk 0:00:03.6]} 42... e4 {[%clk 0:00:05.6]} 43.
a5 {[%clk 0:00:02.1]} 43... e3+ {[%clk 0:00:06]} 44. Kf1 {[%clk 0:00:02.3]}
44... f3 {[%clk 0:00:05.6]} 0-1

[Event "*** Titled Tuesday Blitz"]
[Site "Chess.com"]
[Date "2020.04.07"]
[Round "5"]
[White "lilleper1"]
[Black "DejanNestor64"]
[Result "0-1"]
[WhiteElo "2641"]
[BlackElo "2451"]
[TimeControl "180+1"]
[EndTime "13:56:42 PDT"]
[Termination "DejanNestor64 won by checkmate"]

1. e4 {[%clk 0:03:00.9]} 1... c5 {[%clk 0:02:58.5]} 2. Nf3 {[%clk 0:03:00.7]}
2... e6 {[%clk 0:02:58.8]} 3. d4 {[%clk 0:03:00.9]} 3... cxd4 {[%clk 0:02:59]}
4. Nxd4 {[%clk 0:03:01.1]} 4... Bc5 {[%clk 0:02:59.5]} 5. Nb3 {[%clk 0:02:56.2]}
5... Bb6 {[%clk 0:02:59.5]} 6. Nc3 {[%clk 0:02:55.6]} 6... Ne7 {[%clk
0:02:59.4]} 7. Be2 {[%clk 0:02:53]} 7... O-O {[%clk 0:02:58.9]} 8. O-O {[%clk
0:02:52.7]} 8... Nbc6 {[%clk 0:02:59.3]} 9. Bf4 {[%clk 0:02:50.5]} 9... f5
{[%clk 0:02:55.3]} 10. Qd2 {[%clk 0:02:44.8]} 10... fxe4 {[%clk 0:02:53.7]} 11.
Nxe4 {[%clk 0:02:45.1]} 11... d5 {[%clk 0:02:53.7]} 12. Nc3 {[%clk 0:02:35.4]}
12... e5 {[%clk 0:02:50.9]} 13. Bg5 {[%clk 0:02:33]} 13... Be6 {[%clk
0:02:41.9]} 14. Rad1 {[%clk 0:02:32.4]} 14... h6 {[%clk 0:02:22.8]} 15. Bh4
{[%clk 0:02:31.1]} 15... d4 {[%clk 0:02:10.4]} 16. Ne4 {[%clk 0:02:28.5]} 16...
Qd5 {[%clk 0:02:04.6]} 17. Bd3 {[%clk 0:02:21.5]} 17... Nf5 {[%clk 0:01:49.8]}
18. Bg3 {[%clk 0:02:20.7]} 18... Nxg3 {[%clk 0:01:36.7]} 19. hxg3 {[%clk
0:02:20.2]} 19... Bf5 {[%clk 0:01:34]} 20. Qe2 {[%clk 0:02:19.4]} 20... Qd7
{[%clk 0:01:29.1]} 21. a3 {[%clk 0:02:11.3]} 21... Kh8 {[%clk 0:01:25.6]} 22.
Nbd2 {[%clk 0:02:10.3]} 22... Qe7 {[%clk 0:01:12.8]} 23. g4 {[%clk 0:02:07.6]}
23... Bh7 {[%clk 0:01:11.2]} 24. Ng3 {[%clk 0:02:06]} 24... Bxd3 {[%clk
0:01:04.9]} 25. cxd3 {[%clk 0:02:05.8]} 25... Qg5 {[%clk 0:00:59.4]} 26. Nde4
{[%clk 0:02:01.9]} 26... Qf4 {[%clk 0:00:56.1]} 27. Nh5 {[%clk 0:02:00.6]} 27...
Qf7 {[%clk 0:00:55.7]} 28. g5 {[%clk 0:01:20.4]} 28... Qg6 {[%clk 0:00:45]} 29.
gxh6 {[%clk 0:01:15.1]} 29... gxh6 {[%clk 0:00:42.2]} 30. g4 {[%clk 0:01:02.7]}
30... Rf7 {[%clk 0:00:39.2]} 31. f3 {[%clk 0:00:59.8]} 31... Rg8 {[%clk
0:00:38.8]} 32. Nhg3 {[%clk 0:00:59.6]} 32... Ne7 {[%clk 0:00:37.9]} 33. Rf2
{[%clk 0:00:49.6]} 33... Nd5 {[%clk 0:00:37.8]} 34. Rh2 {[%clk 0:00:47.4]} 34...
Bd8 {[%clk 0:00:33.2]} 35. Kf2 {[%clk 0:00:39.5]} 35... Bg5 {[%clk 0:00:26.6]}
36. Rdh1 {[%clk 0:00:33.9]} 36... Be3+ {[%clk 0:00:20.9]} 37. Ke1 {[%clk
0:00:26.6]} 37... Kh7 {[%clk 0:00:21.2]} 38. g5 {[%clk 0:00:19.6]} 38... Bxg5
{[%clk 0:00:19.7]} 39. Nxg5+ {[%clk 0:00:18.8]} 39... Qxg5 {[%clk 0:00:19.5]}
40. Rxh6+ {[%clk 0:00:18.8]} 40... Kg7 {[%clk 0:00:17.2]} 41. Ne4 {[%clk
0:00:16.9]} 41... Qc1+ {[%clk 0:00:15.4]} 42. Kf2 {[%clk 0:00:16.2]} 42... Qf4
{[%clk 0:00:14.8]} 43. Rh7+ {[%clk 0:00:15.1]} 43... Kf8 {[%clk 0:00:14]} 44.
Rxf7+ {[%clk 0:00:15.1]} 44... Kxf7 {[%clk 0:00:14.4]} 45. Rh7+ {[%clk
0:00:13.9]} 45... Kf8 {[%clk 0:00:13]} 46. Qc2 {[%clk 0:00:07.2]} 46... Qe3+
{[%clk 0:00:11.9]} 47. Kf1 {[%clk 0:00:05.6]} 47... Rg1# {[%clk 0:00:11.5]} 0-1